Cogmind - Beta 15 @@@ ROGUE MODE // 2025.05.29 @ 03:09:06 Player: K0T Result: Destroyed by WV-4NQ(R) with Subdweller Laser Performance ------------- Evolutions (0) 0 Regions Visited (2) 400 Robots Destroyed (17) 85 Value Destroyed (465) 465 Prototype IDs (0) 0 Alien Tech Used (0) 0 Bonus (0) 0 TOTAL SCORE: 950 Bonus ------- None Cogmind --------- Core Integrity 0/250 Matter 240/300 Energy 56/250 System Corruption 0% Temperature Warm (126) Movement Treading (320) Ox2 Location -10/Subcaves Parts ------- > --- POWER (1) -------- Ion Engine > --- PROPULSION (2) --- Light Treads Aluminum Leg > --- UTILITY (2) ------ High-capacity Storage Unit Terrain Scanner > --- WEAPON (2) ------- Beam Cannon Beam Cannon > --- INVENTORY (20) --- Light Ion Engine Light Nuclear Core Aluminum Leg Improved Heat Sink Improved Heat Sink High-capacity Storage Unit Huge Storage Unit Weight Redist. System Salvaging Laser Salvaging Laser Mining Laser Peak State ------------ > --- POWER ------------ Ion Engine > --- PROPULSION ------- Light Treads Light Treads > --- UTILITY ---------- High-capacity Storage Unit Terrain Scanner > --- WEAPON ----------- Assault Rifle Subdweller Machine Gun > --- INVENTORY -------- Ion Engine Light Ion Engine Light Nuclear Core Light Treads Aluminum Leg Aluminum Leg Improved Heat Sink Improved Heat Sink High-capacity Storage Unit Huge Storage Unit Weight Redist. System Salvaging Laser Salvaging Laser Beam Cannon Beam Cannon Assault Rifle Mining Laser [Rating: 10] Favorites ----------- Power Ion Engine Engine Ion Engine Propulsion Light Treads Treads Light Treads Leg Aluminum Leg Utility High-capacity Storage Unit Device Weight Redist. System Storage High-capacity Storage Unit Weapon Assault Rifle Energy Cannon Beam Cannon Ballistic Gun Assault Rifle Build | -11 -10 -10 ------- Run | Yrd Mat Sub Slots Evolved . | . . . Power . | . . . Propulsion . | . . . Utility . | . . . Weapon . | . . . Parts Attached 19 | 6 7 6 Power 5 | 1 3 1 Engine 5 | 1 3 1 Core . | . . . Reactor . | . . . Propulsion 4 | 2 . 2 Treads 3 | 2 . 1 Leg 1 | . . 1 Wheel . | . . . Hover . | . . . Flight . | . . . Utility 5 | 1 4 . Device 2 | . 2 . Storage 3 | 1 2 . Processor . | . . . Hackware . | . . . Protection . | . . . Artifact . | . . . Weapon 5 | 2 . 3 Energy Gun . | . . . Energy Cannon 2 | . . 2 Ballistic Gun 3 | 2 . 1 Ballistic Cannon . | . . . Launcher . | . . . Special Weapon . | . . . Impact Weapon . | . . . Slashing Weapon . | . . . Piercing Weapon . | . . . Special Melee Weapon . | . . . Unidentified Prototypes . | . . . Parts Lost 5 | . . 5 Power 1 | . . 1 Propulsion 2 | . . 2 Utility . | . . . Weapon 2 | . . 2 Highest Loss Streak 5 | . . 5 To Critical Strikes . | . . . Average Backups 11 | 1 11 15 Power 2 | . 2 2 Propulsion 2 | 1 2 2 Utility 4 | . 4 5 Weapon 2 | . 1 4 Tool/Special . | . . . Unused Backups 9 | . . 9 Power 1 | . . 1 Propulsion 1 | . . 1 Utility 4 | . . 4 Weapon 3 | . . 3 Tool/Special . | . . . Average Slot Usage (%) 98 | . 98 98 Engine 13 | . 14 13 Treads 27 | . 28 26 Device 13 | . 12 14 Storage 14 | . 14 14 Ballistic Gun 27 | . 28 25 Peak Build Rating 10 | 6 9 10 Average Rating 8 | 4 8 9 On Entrance 5 | . 6 9 Naked Turns . | . . . Heaviest Build 52 | 12 50 52 Greatest Support 46 | 40 46 40 Greatest Overweight (x) 2 | . 1 2 Average Overweight (x) . | . . 1 Largest Inventory Capacity 20 | 8 20 20 Average Capacity 16 | 6 16 20 Most Carried 17 | 4 16 17 Average Carried 11 | 1 11 15 Final Capacity 20 | 8 20 20 Final Carried 15 | 1 15 11 Class Distribution -------------------- 100% | Mutant Dominant Class ---------------- Mutant | -10/Materials Mutant | -10/Subcaves Resources | -11 -10 -10 ----------- Run | Yrd Mat Sub Matter Collected 611 | 135 454 22 Remotely . | . . . Salvage Created 702 | . 538 164 Parts 45 | . 34 11 Haulers Intercepted 2 | . 2 . Recyclers Shooed 1 | . 1 . Parts Field Recycled . | . . . Retrieved Matter . | . . . Parts Self-Destructed 4 | . . 4 Prevented . | . . . Kills | -11 -10 -10 ------- Run | Yrd Mat Sub Combat Hostiles Destroyed 12 | . 9 3 Guns 10 | . 9 1 Cannons 2 | . . 2 Classes Destroyed 6 | . 5 1 Worker 1 | . 1 . Builder 1 | . 1 . Hauler 2 | . 2 . Watcher 1 | . 1 . Grunt 9 | . 9 . Subdweller 3 | . . 3 Best Kill Streak 4 | . 4 2 Combat Bots Only 3 | . 3 2 Max Kills in Single Turn 1 | . 1 1 Gunslinging . | . . . Exploded . | . . . Melee . | . . . Uniques/NPCs Destroyed . | . . . Combat | -11 -10 -10 -------- Run | Yrd Mat Sub Hostile Shots Fired 104 | . 51 53 Missed 14 | . 7 7 Hits 90 | . 44 46 Projectile 90 | . 44 46 Damage Taken 1467 | . 490 977 Core 264 | . 64 200 Absorbed by Shields . | . . . Core Remaining (%) 100 | 100 . . Volleys Fired 61 | . 42 19 Largest 2 | . 2 2 Hottest 120 | . 40 120 Shots Fired 122 | . 84 38 Gun 102 | . 84 18 Cannon 20 | . . 20 Launcher . | . . . Special . | . . . Kinetic 102 | . 84 18 Thermal 20 | . . 20 Explosive . | . . . Electromagnetic . | . . . Robot Hit Streak 27 | . 6 27 Robot Miss Streak 5 | . 5 1 Penetration Max . | . . . Secondary Targets 1 | . 1 . Max Gunslinging Chain 1 | . 1 . Shots Hit Robots 86 | . 52 34 Core Hits 31 | . 25 6 Critical Kills 1 | . 1 . Critical Parts Destroyed 1 | . . 1 Critical Strikes 2 | . 1 1 Destroy 2 | . 1 1 Melee Attacks . | . . . Impact . | . . . Slashing . | . . . Piercing . | . . . Sneak Attacks . | . . . Combat Hostiles . | . . . Follow-up Attacks . | . . . Damage Inflicted 1123 | . 708 415 Guns 945 | . 706 239 Cannons 176 | . . 176 Explosions . | . . . Melee . | . . . Ramming 2 | . 2 . Kinetic 945 | . 706 239 Thermal 176 | . . 176 Explosive . | . . . Electromagnetic . | . . . Impact . | . . . Slashing . | . . . Piercing . | . . . Highest Corruption . | . . . Average Corruption . | . . . Corruption Purged . | . . . Corruption Blocked . | . . . Overload Shots . | . . . Overflow Damage . | . . . Projectiles . | . . . Explosions . | . . . Melee . | . . . Knockbacks . | . . . Impact . | . . . Kinetic . | . . . Secondary . | . . . Self-Inflicted Damage . | . . . Shots . | . . . Rammed 1 | . 1 . Targets Rammed 1 | . 1 . Kicked . | . . . Crushed . | . . . Highest Temperature 120 | . 5 120 Average Temperature 56 | . 3 73 Received Heat Transfer 486 | . 270 216 Siege Activations . | . . . Martial Activations . | . . . Shielding Activations . | . . . Robots Disrupted . | . . . Combat Hostiles . | . . . Robots Corrupted . | . . . Combat Hostiles . | . . . Parts Fried . | . . . Impact Corruptions . | . . . Robots Melted . | . . . Combat Hostiles . | . . . Parts Melted . | . . . Heat Transferred 370 | . . 370 Parts Sabotaged . | . . . Parts Stolen . | . . . Parts Stripped . | . . . Power Chain Reactions . | . . . Alert | -11 -10 -10 ------- Run | Yrd Mat Sub Maximum Alert Level . | . . . Low Security (%) 100 | 100 100 . Level 1 . | . . . Level 2 . | . . . Level 3 . | . . . Level 4 . | . . . Level 5 . | . . . High Security . | . . . Max Security . | . . . Peak Influence 82 | . 82 . Initial . | . . . Average 16 | . 17 . Influence Increases 267 | . 267 . Destroy 0b10 Robot/C 180 | . 180 . Destroy 0b10 Robot/NC 25 | . 25 . Destroy Leader 56 | . 56 . Successful Hack 6 | . 6 . Influence Decreases 267 | . 221 46 Entered New Map 23 | . . 23 Time Decay 244 | . 221 23 Squads Dispatched 4 | . 4 . Investigation 3 | . 3 . Extermination . | . . . Reinforcement 1 | . 1 . Assault . | . . . Garrison . | . . . Intercept . | . . . Searches Triggered . | . . . Construction Impeded . | . . . Haulers Reinforced . | . . . Active Scanning Responses . | . . . Cargo Convoy Interrupts . | . . . Stealth | -11 -10 -10 --------- Run | Yrd Mat Sub Distress Signals . | . . . Communications Jammed . | . . . Distress Signals . | . . . Times Spotted 19 | . 14 5 Peak Tracking Total 4 | . 3 4 Tactical Retreats . | . . . Traps | -11 -10 -10 ------- Run | Yrd Mat Sub Traps Triggered 4 | . 4 . Indirectly . | . . . Trap Hack Attempts . | . . . Triggered . | . . . Disarmed . | . . . Reprogrammed . | . . . Reused . | . . . Traps Extracted . | . . . Installed . | . . . Triggered . | . . . Machines | -11 -10 -10 ---------- Run | Yrd Mat Sub Machines Disabled . | . . . Max in Single Turn . | . . . Machines Repaired . | . . . Machines Dismantled . | . . . Machines Sabotaged . | . . . Overloaded Fab Kills . | . . . Hacking | -11 -10 -10 --------- Run | Yrd Mat Sub Machines Accessed 1 | . 1 . Terminals 1 | . 1 . Fabricators . | . . . Repair Stations . | . . . Recycling Units . | . . . Scanalyzers . | . . . Garrison Access . | . . . Total Hacks 4 | . 4 . Successful 1 | . 1 . Failed 2 | . 2 . Catastrophic . | . . . Database Lockouts 1 | . 1 . Manual 5 | . 5 . Terminals 4 | . 4 . Fabricators . | . . . Repair Stations . | . . . Recycling Units . | . . . Scanalyzers . | . . . Garrison Access . | . . . Terminal Hacks 1 | . 1 . Robot Analysis 1 | . 1 . Fabricator Hacks . | . . . Repair Station Hacks . | . . . Recycling Unit Hacks . | . . . Scanalyzer . | . . . Garrison Access Hacks . | . . . Unauthorized Hacks . | . . . Terminals . | . . . Fabricators . | . . . Repair Stations . | . . . Recycling Units . | . . . Scanalyzers . | . . . Garrison Access . | . . . Data Cores Recovered . | . . . Used . | . . . Hacking Detections 1 | . 1 . Full Trace Events . | . . . Feedback Events . | . . . Feedback Blocked . | . . . Robot Schematics Acquired . | . . . Robots Built . | . . . Authchips . | . . . Time . | . . . Total Robot Build Rating . | . . . Part Schematics Acquired . | . . . Parts Built . | . . . Authchips . | . . . Time . | . . . Total Part Build Rating . | . . . Parts Repaired . | . . . Time . | . . . Parts Recycled . | . . . Recycled Matter . | . . . Retrieved Matter . | . . . Retrieved Components . | . . . Parts Scanalyzed . | . . . Part Schematics Acquired . | . . . Parts Damaged . | . . . Bothacking | -11 -10 -10 ------------ Run | Yrd Mat Sub Used RIF Installer . | . . . Robots Hacked . | . . . Non-combat . | . . . Combat . | . . . Robot Hacks Applied . | . . . Relay Couplers Released . | . . . Fabnet Peak Effective % . | . . . Robots Rewired . | . . . Allies Hacked . | . . . Hacks Repelled . | . . . Allies | -11 -10 -10 -------- Run | Yrd Mat Sub Total Allies . | . . . Largest Group . | . . . Highest-Rated Group . | . . . Highest-Rated Ally . | . . . Total Orders . | . . . Ally Attacks . | . . . Total Damage . | . . . Kills . | . . . Allies Corrupted . | . . . Allies Melted . | . . . Intel | -11 -10 -10 ------- Run | Yrd Mat Sub Active Infowar (turns) 905 | . 517 388 Terrain 905 | . 517 388 Robot Analysis Total 1 | . 1 . Derelict Logs Recovered 1 | . . 1 Drone Launches . | . . . Drone Recoveries . | . . . Exploration | -11 -10 -10 ------------- Run | Yrd Mat Sub Turns Passed 2393 | 66 1939 388 Spaces Moved 1025 | 42 849 134 Core 12 | 12 . . Treads 1013 | 30 849 134 Legs . | . . . Wheels . | . . . Hover . | . . . Flight . | . . . Fastest Speed 50 | 50 160 240 Average Speed 208 | 128 207 240 Slowest Speed 320 | 160 240 320 Overloaded Moves . | . . . Propulsion Burnouts . | . . . Robots Hopped . | . . . Potential Cave-ins . | . . . Cave-ins Triggered . | . . . Exploration Rate (%) 37 | 4 96 11 Regions Visited 2 Branch Regions 1 Pre-discovered Areas . | . . . Known Exits Taken . | . . . Unknown Exits Taken 2 | 1 1 . Scrap Searched . | . . . Spaces Dug . | . . . Terrain Destroyed . | . . . Melee . | . . . Projectile . | . . . AOE . | . . . Terrain Rammed . | . . . Walls Destroyed . | . . . Machines Disabled . | . . . Actions | -11 -10 -10 --------- Run | Yrd Mat Sub Total 1159 | 54 943 162 Wait 21 | . 21 . Move 1023 | 41 848 134 Hop . | . . . Pick Up 28 | 7 19 2 Fast Attach . | . . . Attach 13 | 6 2 5 Detach . | . . . Swap 7 | . 6 1 Drop 5 | . 4 1 Fire 61 | . 42 19 Melee . | . . . Ram . | . . . Kick . | . . . Crush 1 | . 1 . Escape Stasis . | . . . Rewire . | . . . Trap . | . . . Miscellaneous . | . . . Route ------- -11/Scrapyard -10/Materials (discovered 5 exits: [*Mat x3] / [*Min] / [*Sub]) -10/Subcaves (discovered 1 exit: Rec) History --------- Turn | Location | Event 9 | -11/Scrapyard | Discovered new exit (range 16) 67 | -11/Scrapyard | Entered Materials 68 | -10/Materials | Met a group of wandering Federalists 80 | -10/Materials | Central database locked down 200 | -10/Materials | Discovered new exit (range 15) 289 | -10/Materials | Discovered new exit (range 16) 304 | -10/Materials | Build established: Mutant 414 | -10/Materials | Discovered new exit (range 5) 1301 | -10/Materials | Discovered new exit (range 3) 1397 | -10/Materials | Discovered new exit (range 5) 2006 | -10/Materials | Entered Subcaves 2007 | -10/Subcaves | Continued accompanying wandering Federalists (2) 2122 | -10/Subcaves | Identified exit to Recycling 2238 | -10/Subcaves | Shifting Twisted Machinery released Piercing Trap 2352 | -10/Subcaves | Core integrity fell below 50% 2371 | -10/Subcaves | Core integrity fell below 20% 2393 | -10/Subcaves | Lost 5 parts (1p2n2w) 2394 | -10/Subcaves | Destroyed by WV-4NQ(R) with Subdweller Laser Last Messages --------------- Loading 1 Subcaves exit... 02192_ Subatomizers dissect the Sub. Optics, destroying it. 02229_ Subatomizers dissect the Assault Rifle, destroying it. Piercing Trap falls loose from the Twisted Machinery. 02285_ UH-GQ1(u) tweaks Twisted Machinery. 02342_ Ion Engine destroyed. 02348_ CO-UEZ(R) suffers critical hit (Destroy). 02348_ Destroyed Sub. Monowheel. 02351_ Lgt. Treads destroyed. 02355_ CO-UEZ(R) suffers critical hit (Destroy). 02356_ Sub. Machine Gun destroyed. 02357_ CO-UEZ(R) destroyed. 02358_ Lgt. Treads destroyed. 02362_ Assault Rifle destroyed. 02373_ UH-GQ1(u) builds Twisted Machinery. 02374_ JL-SLM(R) destroyed. 02377_ P0-9XA(R) destroyed. Map ----- +----------------------------------------------------+ | ???## " # # ""##?# # #" ""????? | | ???## ##### ""#?#### &"""?????? | | ??## ##?### &##??### """"??????? | | ??# #???# != ####" ## """ ??????? | | ?## ##?### "#&%#""[ #??## #??????? | | #?### # ##?#"" "&%%* ##??????###?#????? | | ##??#### ""#?#" "##&#% ###???????????????? | | ???????## " """####= #? ###???????#????? | | ????????## """" """# ??## ### ?????????????? | | ???????#?### ##"" ????## ##?# #?????????????? | | #???????????######## ?#??# ##### #?????#???????? | | ????????????#???#?? ??### ## #?????????????? | | ???????????????#??? ##?## ##????????????? | | ??????????????#????# #?###"" ###??????????# | | ????#???#??????????# #?##"## ##?????????? | | ???????????????????? ?#### ### #?????????? | | ????#????????????#?## "### "### #?????????? | | ???????#??????????#?# ?#"" # # # #?????#???? | | ????????????????????# #?#" %""" #?????????? | | ??????????????#???#### ## ## """ #?????????? | | ??????????????#????# "### u## """##?????????? | | ????????????????????# ""## ### ##??????????? | | ????????????????????# !&" "#?## #???????????? | | ????????????#???????# =%R ##? %"#??????????? | | ????????????????????# &* "####??" ##??????????? | | ???????????????????## % @"##?????? "#??????????? | | ??????????????#?????### #??#???# ##??????????? | | ????????????????##????# #?#?#??? #?#?????????? | | ????????????????#?????# #???? ?? ???????????? | | ????????????????????? #??????## ???????????? | | ??????????????#??#??? !&* ?????????# ??????????? | | ???????????????????? =&###?????????#??????????? | | ??????????????????? &&%#??????#?#?????????????? | | ?????????????????### ##[&#????????#?????????????? | | ???????????????????###?# &???????????????????????? | | ???????????????????#??? ???????????????????????? | | ????????????????????? ? ???????????????????????? | | ??????????????????????? ???????????????????????? | | ???????????????????????## ???????????????????????? | | ????????????????????????? ???????????????????????? | | ????????????????????????? ?????????>?????????????? | | ?????????????????????????????????????????????????? | | ?????????????????????????????????????????????????? | | ?????????????????????????????????????????????????? | | ?????????????????????????????????????????????????? | | ?????????????????????????????????????????????????? | | ?????????????????????????????????????????????????? | | ?????????????????????????????????????????????????? | | ?????????????????????????????????????????????????? | | ?????????????????????????????????????????????????? | +----------------------------------------------------+ Best States ------------- Heat Dissipation 25 Energy Generation 10 Energy Capacity 250 Matter Stores 300 Matter Capacity 300 Sight Range 16 Terrain Scan Range 14 Terrain Scan Density 10 Additional Mass Support 6 Evasion (%) 50 Recoil Reduction 2 Item Schematics ----------------- None Robot Schematics ------------------ None Fabricated ------------ Nothing Repaired ---------- Nothing Alien Tech Used ----------------- None Achievements -------------- None Challenges ------------ None Game ------ Seed LayeredScatterSubcomponent Manual? 0 Play Time 00:12:30 Cumulative 142.3 hours Start 2025.05.29 @ 02:58:35 End 2025.05.29 @ 03:09:06 Sessions 1 Manual Loads 0 Difficulty Rogue Special Mode None Game No. 70 Rogue 57 Adventurer 13 Explorer 0 Win Type - Total 1 Types 1/0/0/0/0/0/0/0/0/0 Lore% 35 Gallery% 39 Achievement% 40 Wizard Run 0 Options --------- Layout 1 ASCII 0 Keyboard 0 Movement Mouse Keybinds 0 Fullscreen 1 Font 24/Smallcaps Map View 50x35 Zoom Use 0% Tactical HUD 1 Map Filters NONE Filters NONE Steam 0 RUN: 20511023-d135-407e-a74c-15a84a763346